bitfinex/quotes_ETHUSD_20220109
["timestamp","ask_amount","ask_price","bid_price","bid_amount"]
[1641744366580,1.29961339,3101.2,3100.8,1.26408347]
[1641744366781,1.29961339,3101.2,3100.7,0.0806]
[1641744367082,3.2,3101.3,3100.8,0.00682108]
[1641744367282,3.1,3101.3,3100.8,0.00682108]
[1641744367583,3.1,3101.3,3100.9,0.465]
[1641744367781,3.1,3101.3,3101.0,0.0806]
[1641744368124,3.1,3101.3,3100.7,1.18333642]
[1641744368523,3.1,3101.3,3100.8,0.00682108]
[1641744368923,4.45717875,3101.3,3100.8,0.00682108]
[1641744369423,1.38823485,3101.2,3100.8,1.49002859]
[1641744369824,1.38823485,3101.2,3100.9,0.00625265]
[1641744370230,3.1,3101.3,3100.9,0.00625265]
[1641744370627,6.69848532,3101.7,3101.1,14.65]
[1641744370828,6.69848532,3101.7,3101.2,0.0806]
[1641744371025,6.69848532,3101.7,3101.3,0.465]
[1641744371226,6.69848532,3101.7,3101.4,18.9906]
[1641744371425,6.69848532,3101.7,3101.5,2.68217889]
[1641744371625,6.69848532,3101.7,3101.6,12.5806]
[1641744371626,6.64848532,3101.7,3101.6,12.5806]
[1641744371885,3.63238532,3101.7,3101.6,12.88287369]
[1641744372073,0.00612804,3102.9,3101.7,3.63238532]
[1641744372270,4.6277612,3103.4,3101.8,0.54557]
[1641744372271,0.08057,3103.3,3101.8,0.54557]
[1641744372470,3.8217,3103.4,3101.8,0.54557]
[1641744372471,0.00612804,3102.3,3101.8,1.54670684]
[1641744372670,0.00612804,3102.3,3101.8,1.84670684]
[1641744372872,0.00113685,3102.2,3101.9,14.65]
[1641744373071,0.00113685,3102.2,3102.0,4.6019634]
[1641744373270,0.00568424,3103.0,3102.1,16.21710652]
[1641744373474,0.00568424,3103.0,3102.2,0.08057]
[1641744373672,1.47451137,3103.1,3102.3,10.9]
[1641744373971,1.47451137,3103.1,3102.4,2.69015765]
[1641744374173,1.47451137,3103.1,3102.4,0.08341212]
[1641744374370,1.26249209,3102.8,3102.5,1.31066378]
[1641744374571,1.26249209,3102.8,3102.5,0.0022737]
[1641744374770,1.26249209,3102.8,3102.6,0.00170528]
[1641744374972,1.26249209,3102.8,3102.5,0.0022737]
[1641744375173,2.81051794,3103.1,3102.5,0.0022737]
[1641744375174,1.47451137,3103.1,3102.5,0.0022737]
[1641744375372,1.47451137,3103.1,3102.5,0.8081737]
[1641744375620,3.7717,3103.4,3102.6,2.78238885]
[1641744375823,4.74746061,3103.6,3102.7,0.08056]
[1641744375824,4.69746061,3103.6,3102.7,0.08056]
[1641744376024,4.69746061,3103.6,3102.7,0.08169685]
[1641744376025,0.00227369,3103.3,3102.7,0.08169685]
[1641744376222,1.14454366,3103.2,3102.8,1.26036846]
[1641744376422,1.14624893,3103.2,3102.8,2.06617846]
[1641744376623,0.00113684,3103.1,3102.8,4.73393722]
[1641744377023,0.00113684,3103.1,3102.8,4.39312722]
[1641744377223,0.00113684,3103.1,3102.8,0.465]
[1641744377426,0.00113684,3103.1,3102.7,0.00113685]
[1641744377427,0.08056,3103.0,3102.7,0.00113685]
[1641744377624,0.08057,3103.0,3102.7,0.00113685]
[1641744377827,0.08057,3103.0,3102.2,0.00397897]
[1641744377828,0.03057,3103.0,3102.2,0.00397897]
[1641744378025,0.465,3102.9,3101.9,0.00568424]
[1641744378225,2.56637328,3102.0,3101.8,0.00625266]
[1641744378532,1.13851462,3102.0,3101.8,0.00625266]
[1641744378728,0.8063494,3102.5,3101.8,0.00625266]
[1641744379025,0.08058,3102.8,3101.9,0.01220693]
[1641744379475,0.08058,3102.8,3102.0,0.00511582]
[1641744379677,1.21106488,3102.9,3102.0,0.00511582]
[1641744379875,1.12881354,3102.5,3102.0,0.00511582]
[1641744380673,1.12881354,3102.5,3102.0,1.44739576]
[1641744380873,0.08170684,3103.1,3102.0,1.74739576]
[1641744380874,0.00113684,3103.1,3102.0,1.74739576]
[1641744381075,0.00113684,3103.1,3102.1,0.00454739]
[1641744381874,1.97913719,3103.1,3102.1,0.00454739]
[1641744382677,1.29235232,3102.5,3102.1,0.00454739]
[1641744383322,1.29235232,3102.5,3101.7,4.79998532]
[1641744383323,2.17303031,3101.9,3101.7,3.71295532]
[1641744383522,4.2068329,3102.5,3101.7,3.63238532]
[1641744383728,4.15853817,3102.5,3101.9,0.00113685]
[1641744383923,0.806326,3102.3,3101.9,0.00113685]
[1641744384124,1.23369535,3102.2,3101.8,0.00341054]
[1641744384525,1.14298959,3101.9,3101.8,0.00341054]
[1641744384927,1.23369535,3102.2,3101.8,1.28676006]
[1641744385124,3.9105,3102.6,3101.8,1.28676006]
[1641744385426,4.16665478,3102.8,3101.9,0.00284212]
[1641744385626,0.00605986,3102.5,3101.9,0.00284212]
[1641744385925,0.00605986,3102.5,3101.8,0.00341054]
[1641744386229,1.00616022,3102.0,3101.8,0.00341054]
[1641744386878,1.20507026,3101.9,3101.7,3.53579586]
[1641744387573,4.28058,3102.5,3101.7,3.53579586]
[1641744387773,3.28058,3102.5,3101.7,3.53579586]
[1641744387972,0.00341054,3102.4,3101.7,3.53579586]
[1641744388372,0.00284211,3102.3,3101.7,3.53579586]
[1641744388574,1.21082402,3102.0,3101.7,4.6906259]
[1641744388877,0.00227369,3102.2,3101.7,3.53579586]
[1641744389274,1.0,3102.4,3101.7,3.53579586]
[1641744389476,1.0,3102.4,3101.8,0.00170527]
[1641744389674,0.00113684,3102.3,3101.8,0.00170527]
[1641744389877,0.00113684,3102.3,3102.0,1.10944207]
[1641744390076,4.64173852,3102.5,3102.0,1.10944207]
[1641744390077,0.00170527,3102.4,3102.0,1.10944207]
[1641744390376,0.00170527,3102.4,3102.1,18.91]
[1641744390624,0.00170527,3102.4,3102.2,0.08057]
[1641744391025,0.00170527,3102.4,3102.3,13.16482814]
[1641744391230,0.00170527,3102.4,3102.3,0.08057]
[1641744391433,0.00170527,3102.4,3102.2,0.08057]
[1641744392025,0.00170527,3102.4,3102.1,0.08057]
[1641744392426,3.2,3102.5,3102.1,0.08057]
[1641744392427,3.15170527,3102.5,3102.1,0.08057]
[1641744392626,3.15170527,3102.5,3102.2,0.00113685]
[1641744393026,3.15170527,3102.5,3101.9,0.08057]
[1641744393027,3.00170527,3102.5,3102.0,0.0022737]
[1641744393426,3.00170527,3102.5,3102.3,1.48090625]
[1641744393628,3.00170527,3102.5,3102.3,0.80598]
[1641744393827,3.00170527,3102.5,3102.3,0.08057]
[1641744394029,3.00170527,3102.5,3102.0,0.08057]
[1641744394478,2.95170527,3102.5,3102.1,0.00170527]
[1641744394680,1.18740206,3102.2,3102.1,0.00170527]
[1641744395276,5.88740206,3102.2,3102.1,0.00170527]
[1641744395977,1.18740206,3102.2,3102.1,0.00170527]
[1641744397282,1.18740206,3102.2,3101.8,0.00341054]
[1641744397480,1.21328651,3102.1,3101.8,0.00341054]
[1641744398543,1.21328651,3102.1,3101.8,0.80954054]
[1641744398743,2.95170527,3102.5,3101.8,0.80954054]
[1641744398946,2.95170527,3102.5,3102.2,1.32138508]
[1641744399147,2.95170527,3102.5,3102.3,18.99057]
[1641744399346,2.95170527,3102.5,3102.3,0.38057]
[1641744399544,2.90170527,3102.5,3102.3,0.38057]
[1641744399746,2.90170527,3102.5,3102.3,0.08057]
[1641744399747,4.4192193,3102.5,3102.3,0.08057]
[1641744400343,2.90170527,3102.5,3102.3,0.08057]
[1641744400545,2.90170527,3102.5,3102.3,0.8865]
[1641744400744,2.90170527,3102.5,3102.3,1.69243]
[1641744400944,2.90170527,3102.5,3102.3,1.99243]
[1641744401146,2.90170527,3102.5,3102.3,1.69243]
[1641744401980,2.90170527,3102.5,3102.1,0.08057]
[1641744402174,2.90170527,3102.5,3101.9,0.00284212]
[1641744402373,2.90170527,3102.5,3102.2,0.00113685]
[1641744402573,2.90170527,3102.5,3101.8,0.08057]
[1641744402574,2.85170527,3102.5,3101.9,0.00284212]
[1641744402774,1.34811181,3102.0,3101.9,0.00284212]
[1641744403174,1.18143383,3102.4,3101.8,0.00341054]
[1641744403374,1.18143383,3102.4,3101.9,0.08058]
[1641744403876,1.98764233,3102.4,3102.0,0.0022737]
[1641744404280,1.47989248,3102.3,3102.0,0.0022737]
[1641744404477,1.47989248,3102.3,3101.8,0.00341054]
[1641744404678,1.47989248,3102.3,3101.9,0.08058]
[1641744405079,1.47989248,3102.3,3102.0,0.0022737]
[1641744406724,1.47989248,3102.3,3102.0,0.88665]
[1641744406929,1.47989248,3102.3,3102.0,0.8889237]
[1641744407124,1.47989248,3102.3,3102.1,0.00170527]
[1641744407926,1.47989248,3102.3,3102.0,0.0022737]
[1641744408128,1.47989248,3102.3,3101.9,0.00284212]
[1641744408527,1.47989248,3102.3,3101.8,0.00341054]
[1641744408728,1.6127778,3102.1,3101.8,0.00341054]
[1641744408928,1.6933578,3102.1,3101.8,0.00341054]
[1641744409126,1.19100173,3102.0,3101.8,0.00341054]
[1641744409394,11.33058,3101.9,3101.8,0.00341054]
[1641744409793,12.33058,3101.9,3101.8,0.00341054]
[1641744410598,3.30336194,3101.9,3101.8,0.00341054]
[1641744410797,2.30336194,3101.9,3101.8,0.00341054]
[1641744411196,2.15336194,3101.9,3101.8,0.00341054]
[1641744413741,2.10336194,3101.9,3101.8,0.00341054]
[1641744416345,2.05336194,3101.9,3101.8,0.00341054]
[1641744417573,1.84336194,3101.9,3101.8,0.00341054]
[1641744418572,1.84336194,3101.9,3101.8,0.08399054]
[1641744419275,1.84336194,3101.9,3101.8,14.98399054]
[1641744419472,1.84336194,3101.9,3101.8,33.89399054]
[1641744419673,1.84336194,3101.9,3101.8,1.69615054]
[1641744419875,1.0,3102.0,3101.8,1.69615054]
[1641744420277,1.0,3102.0,3101.9,15.30891212]
[1641744420474,1.0,3102.0,3101.9,15.60891212]
[1641744420731,2.85776513,3102.5,3102.0,14.6]
[1641744420930,2.45985115,3103.2,3102.5,2.85776513]
[1641744421129,1.23053905,3102.8,3102.6,22.62392661]
[1641744421329,0.1582577,3103.0,3102.8,16.22361962]
[1641744421532,0.1582577,3103.0,3102.9,18.37949846]
[1641744421729,0.1582577,3103.0,3102.9,37.58949846]
[1641744421934,2.45985115,3103.3,3102.9,37.58949846]
[1641744422133,2.45985115,3103.3,3103.0,0.54556]
[1641744422332,0.00454739,3103.2,3103.1,21.90216198]
[1641744422533,0.00454739,3103.2,3103.1,24.65900198]
[1641744422734,0.00454739,3103.2,3103.1,25.65900198]
[1641744422930,0.00454739,3103.2,3103.1,24.65900198]
[1641744423130,0.00454739,3103.2,3103.1,25.65900198]
[1641744425276,4.69746061,3103.6,3103.2,14.6]
[1641744425476,4.69746061,3103.6,3103.5,21.19694312]
[1641744425677,4.69746061,3103.6,3103.5,21.49694312]
[1641744425877,4.69746061,3103.6,3103.5,24.11167099]
[1641744426475,4.69746061,3103.6,3103.5,22.79694312]
[1641744426676,4.69746061,3103.6,3103.5,2.88694312]
[1641744428130,4.69746061,3103.6,3103.5,24.35641152]
[1641744429025,4.69746061,3103.6,3103.5,24.43695152]
[1641744429428,0.00599243,3104.2,3103.7,18.91]
[1641744429729,0.00511581,3104.1,3104.0,0.8054]
[1641744430025,0.00511581,3104.1,3104.0,0.3]
[1641744430229,3.19941975,3105.2,3103.8,0.08053]
[1641744430424,1.28607634,3104.1,3103.8,0.08053]
[1641744430625,1.28607634,3104.1,3103.9,0.00113685]
[1641744430825,3.90370097,3105.2,3103.9,0.00113685]
[1641744431027,0.00625265,3105.2,3103.9,0.00113685]
[1641744431226,2.45985115,3104.9,3103.9,20.14642047]
[1641744431426,2.45985115,3104.9,3104.0,0.08053]
[1641744431626,0.00397896,3104.8,3104.0,1.08053]
[1641744431887,0.00397896,3104.8,3104.2,0.80547]
[1641744432083,1.53477162,3104.4,3104.2,1.10547]
[1641744432281,1.53477162,3104.4,3104.2,1.40547]
[1641744432581,0.00113684,3104.3,3104.2,0.80547]
[1641744432783,0.00113684,3104.3,3103.8,0.00170527]
[1641744433182,0.00113684,3104.3,3103.8,18.91170527]
[1641744433380,1.48206128,3103.9,3103.8,0.00170527]
[1641744433582,1.48206128,3103.9,3103.7,1.61106]
[1641744433982,1.35713368,3103.8,3103.6,2.7911678]
[1641744434385,1.35713368,3103.8,3103.7,0.0022737]
[1641744435390,1.30713368,3103.8,3103.7,0.0022737]
[1641744436828,5.50713368,3103.8,3103.7,0.0022737]
[1641744437025,5.50713368,3103.8,3103.7,0.00325269]
[1641744437224,1.30713368,3103.8,3103.7,0.00325269]
[1641744438028,1.30713368,3103.8,3103.7,0.0022737]
[1641744438029,2.59740301,3103.8,3103.7,0.0022737]
[1641744438425,1.29026933,3103.8,3103.7,0.0022737]
[1641744438826,1.48206128,3103.9,3103.7,0.0022737]
[1641744439028,1.43206128,3103.9,3103.7,0.0022737]
[1641744439225,0.55688324,3104.3,3103.7,0.0022737]
[1641744439677,1.29591993,3103.9,3103.7,0.0022737]
[1641744440478,4.49591993,3103.9,3103.7,0.0022737]
[1641744440882,1.30780034,3103.8,3103.7,0.0022737]
[1641744443626,1.15780034,3103.8,3103.7,0.0022737]
[1641744444227,1.05780034,3103.8,3103.7,0.0022737]
[1641744444428,3.2,3103.9,3103.7,0.0828037]
[1641744444828,3.15,3103.9,3103.8,0.00170527]
[1641744445429,4.25347932,3103.9,3103.8,0.00170527]
[1641744445628,3.15,3103.9,3103.8,18.91170527]
[1641744445828,3.15,3103.9,3103.8,19.67670527]
[1641744446030,0.0135,3103.9,3103.8,1.76670527]
[1641744446227,0.0135,3103.9,3103.8,3.53692245]
[1641744446731,0.0135,3103.9,3103.8,2.22951887]
[1641744446980,0.0135,3103.9,3103.8,0.84723527]
[1641744447378,0.0135,3103.9,3103.8,0.54723527]
[1641744447578,0.0135,3103.9,3103.8,0.46670527]
[1641744448479,0.0135,3103.9,3103.8,0.00170527]
[1641744451923,0.0135,3103.9,3103.8,8.654e-05]
[1641744452124,0.0135,3103.9,3103.8,0.00106549]
[1641744453225,0.0135,3103.9,3103.8,8.654e-05]
[1641744454876,1.13902816,3104.2,3103.8,8.654e-05]
[1641744455076,1.08902816,3104.2,3103.7,0.00179181]
[1641744455276,1.09007847,3104.2,3103.7,0.00179181]
[1641744455876,1.38109287,3103.9,3103.7,0.00179181]
[1641744456484,4.21994138,3103.9,3103.7,0.00179181]
[1641744456679,14.6,3103.8,3103.6,0.53315961]
[1641744456880,17.47907557,3103.7,3103.6,5.961e-05]
[1641744457078,11.4,3103.6,3103.2,0.0864964]
[1641744457277,0.8060124,3103.5,3103.2,0.0864964]
[1641744457477,1.40819524,3103.4,3103.3,0.00227369]
[1641744457677,10.90819524,3103.4,3103.3,0.00227369]
[1641744457876,1.40819524,3103.4,3103.3,0.00227369]
[1641744458528,5.60819524,3103.4,3103.3,0.00227369]
[1641744458729,5.52765524,3103.4,3103.3,0.00227369]
[1641744459135,0.8060469,3103.1,3102.5,2.85776513]
[1641744459333,3.14257197,3103.0,3102.5,2.85776513]
[1641744459532,3.22314197,3103.0,3102.6,0.00397897]
[1641744459832,3.30946815,3103.2,3102.6,0.00397897]
[1641744460231,1.21509623,3103.1,3102.6,0.00397897]
[1641744460431,1.28898713,3102.9,3102.6,0.00397897]
[1641744460833,2.09513063,3102.9,3102.6,0.00397897]
[1641744461130,1.08383059,3102.8,3102.6,0.00397897]
[1641744461331,1.06175877,3102.8,3102.6,0.00397897]
[1641744462188,1.28898713,3103.0,3102.6,0.00397897]
[1641744462389,3.28057,3103.4,3102.8,1.20911829]
[1641744462588,3.28057,3103.4,3102.7,0.08057]
[1641744462790,3.2,3103.4,3102.9,0.00227369]
[1641744463091,3.2,3103.4,3103.0,0.08056]
[1641744463291,1.36622117,3103.3,3102.9,2.23729235]
[1641744463490,2.59651857,3103.3,3103.1,0.00113685]
[1641744463689,1.55224804,3103.2,3103.0,0.00170527]
[1641744464396,1.36622117,3103.2,3103.1,0.80582]
[1641744464590,1.25674117,3103.2,3103.1,0.08056]
[1641744464790,1.25674117,3103.2,3103.1,0.08169685]
[1641744464991,3.2,3103.4,3103.1,0.08169685]
[1641744465191,3.19906,3103.4,3103.2,0.08056]
[1641744465633,3.19906,3103.4,3103.3,1.53886092]
[1641744466029,3.19742,3103.4,3103.3,18.16346935]
[1641744466228,3.18011,3103.4,3103.3,35.11255092]
[1641744466630,3.18011,3103.4,3103.3,22.51255092]
[1641744466932,3.18011,3103.4,3103.3,21.51255092]
[1641744467130,3.18011,3103.4,3103.3,22.31930003]
[1641744467329,3.18011,3103.4,3103.3,3.40930003]
[1641744467730,3.18011,3103.4,3103.3,1.87174911]
[1641744467930,0.00592576,3104.0,3103.4,17.0859]
[1641744468131,0.00592576,3104.0,3103.6,2.41618]
[1641744468432,0.00341054,3103.9,3103.8,24.91]
[1641744468631,0.00341054,3103.9,3103.8,20.45553]
[1641744468832,0.00341054,3103.9,3103.8,22.13756946]
[1641744469033,0.00341054,3103.9,3103.8,20.75553]
[1641744469477,0.00341054,3103.9,3103.8,31.30553]
[1641744469676,0.00341054,3103.9,3103.8,20.75553]
[1641744469877,0.00341054,3103.9,3103.7,1.91078]
[1641744469878,0.00341054,3103.9,3103.7,0.8054]
[1641744470080,1.12862659,3104.3,3103.5,0.08053]
[1641744470081,1.08796289,3104.3,3103.5,0.08053]
[1641744470276,1.37382912,3103.7,3103.5,0.80574]
[1641744470478,0.00170527,3104.2,3103.7,0.80564]
[1641744470681,3.2,3103.9,3103.7,0.80564]
[1641744471083,3.15,3103.9,3103.7,0.80564]
[1641744471277,3.10322615,3103.9,3103.8,0.80563]
[1641744472080,3.10322615,3103.9,3103.8,2.58340758]
[1641744472278,3.10322615,3103.9,3103.8,21.49340758]
[1641744472479,0.00113685,3104.1,3104.0,18.91]
[1641744472680,0.00113685,3104.1,3104.0,20.26092]
[1641744472883,0.00113685,3104.1,3104.0,20.86092]
[1641744473328,0.00113685,3104.1,3104.0,21.86092]
[1641744474735,0.00113685,3104.1,3104.0,20.86092]
[1641744474931,0.00113685,3104.1,3104.0,21.86092]
[1641744475131,0.00113685,3104.1,3104.0,2.95092]
[1641744475534,0.00113685,3104.1,3104.0,1.95092]
[1641744476132,1.10512809,3104.5,3104.1,5.35]
[1641744476333,0.00592576,3104.7,3104.3,0.80548]
[1641744476533,0.00170527,3104.4,3104.3,1.40548]
[1641744477578,1.2420757,3104.5,3104.3,1.40548]
[1641744477777,2.55971394,3104.5,3104.3,1.10548]
[1641744477979,2.55971394,3104.5,3104.3,0.3]
[1641744478180,2.55971394,3104.5,3104.0,3.98691]
[1641744478382,2.55971394,3104.5,3104.1,0.3]
[1641744478580,2.55971394,3104.5,3104.1,0.76670527]
[1641744478780,2.55971394,3104.5,3104.2,0.00113685]
[1641744478981,2.55971394,3104.5,3104.2,0.30113685]
[1641744479381,2.55971394,3104.5,3104.2,1.10667685]
[1641744479583,1.22528748,3104.6,3104.2,3.03682615]
[1641744479783,1.22528748,3104.7,3104.3,1.54553]
[1641744479985,1.22528748,3104.7,3104.4,1.61061]
[1641744480182,1.22699275,3104.7,3104.5,0.54551]
[1641744480381,1.22699275,3104.7,3104.6,10.7605]
[1641744480640,1.22699275,3104.7,3104.6,11.0605]
[1641744480641,1.17699275,3104.7,3104.6,11.0605]
[1641744480830,1.13286859,3104.7,3104.6,1.9105]
[1641744481229,1.13286859,3104.7,3104.6,1.6105]
[1641744481529,4.33286859,3104.7,3104.5,2.15601]
[1641744482031,0.00113684,3104.6,3104.5,2.15601]
[1641744482533,0.00113684,3104.6,3104.5,2.45601]
[1641744483130,0.00113684,3104.6,3104.5,0.08051]
[1641744483331,2.8640675,3104.6,3104.2,0.00113685]
[1641744483731,2.8640675,3104.6,3103.9,0.00284212]
[1641744483932,1.08053,3104.5,3103.9,0.00284212]
[1641744484133,4.35194637,3104.4,3103.9,0.00284212]
[1641744484383,14.6,3104.2,3103.8,7.212e-05]
[1641744484684,0.8059351,3104.0,3103.8,7.212e-05]
[1641744485483,13.31658401,3103.9,3103.8,7.212e-05]
[1641744485683,14.63832348,3103.9,3103.8,7.212e-05]
[1641744485884,16.34376291,3103.9,3103.8,7.212e-05]
[1641744486683,17.34376291,3103.9,3103.8,7.212e-05]
[1641744486885,17.42429291,3103.9,3103.8,7.212e-05]
[1641744487989,17.42429291,3103.9,3102.5,2.93829513]
[1641744487990,2.40390739,3103.4,3102.5,2.93829513]
[1641744488234,2.40390739,3103.4,3102.5,2.85776513]
[1641744488235,0.8060588,3103.1,3102.5,2.85776513]
[1641744488436,2.8892435,3103.1,3102.6,0.00738951]
[1641744488634,1.05997871,3103.1,3102.6,0.00738951]
[1641744489434,0.8060649,3102.9,3102.6,0.00738951]
[1641744489636,1.09550721,3102.8,3102.6,0.00738951]
[1641744491339,15.99328422,3102.7,3102.6,0.00738951]
[1641744491737,0.08057,3102.7,3102.6,0.00738951]
[1641744492383,1.73028937,3102.7,3102.6,0.05738951]
[1641744492580,1.68028937,3102.7,3102.6,7.60738951]
[1641744492782,1.63028937,3102.7,3102.6,4.80738951]
[1641744492981,1.63028937,3102.7,3102.6,0.05738951]
[1641744493179,1.63028937,3102.7,3102.6,5.95738951]
[1641744493379,3.2,3103.1,3102.7,0.80586]
[1641744493581,3.2,3103.1,3102.8,0.08056]
[1641744493780,1.40359191,3103.0,3102.9,0.80584]
[1641744493980,1.40359191,3103.0,3102.9,0.89208423]
[1641744495637,1.40359191,3103.0,3102.9,1.19208423]
[1641744496229,3.2,3103.1,3102.9,1.19208423]
[1641744496429,3.2,3103.1,3103.0,0.08056]
[1641744496728,3.2,3103.1,3103.0,0.08567581]
[1641744496928,3.2,3103.1,3103.0,1.69718581]
[1641744497628,1.02849077,3103.1,3103.0,11.7699949]
[1641744497829,2.40390739,3103.4,3103.2,0.80561]
[1641744498033,2.40390739,3103.4,3103.3,33.975]
[1641744498232,2.40390739,3103.4,3103.3,34.27841054]
[1641744498430,2.40390739,3103.4,3103.3,35.57841054]
[1641744499033,0.00113685,3104.1,3103.4,14.6]
[1641744499233,1.94146857,3104.5,3103.5,19.45553]
[1641744499482,1.94146857,3104.5,3103.8,0.80542]
[1641744499483,1.89260542,3104.5,3103.8,0.80542]
[1641744499677,0.00170527,3104.4,3103.9,0.54553]
[1641744499879,0.00170527,3104.4,3103.9,0.84666685]
[1641744500079,1.45729493,3104.1,3103.9,0.84666685]
[1641744500285,1.45729493,3104.1,3104.0,1.61079]
[1641744500479,1.45729493,3104.1,3104.0,3.09672]
[1641744500881,1.45729493,3104.1,3104.0,4.7076]
[1641744501781,0.00113684,3104.3,3104.1,0.3]
[1641744501981,1.83788244,3104.5,3104.1,0.08053]
[1641744502181,1.83788244,3104.5,3104.3,0.8055]
[1641744502382,2.31397,3104.1,3104.0,3.09459271]
[1641744502782,2.31397,3104.1,3104.0,3.09629798]
[1641744502982,2.26397,3104.1,3104.0,3.09629798]
[1641744503231,2.26397,3104.1,3104.0,22.60629798]
[1641744503630,2.26397,3104.1,3104.0,23.60629798]
[1641744503834,1.22720719,3104.8,3104.3,1.61058]
[1641744503835,1.17720719,3104.8,3104.3,1.61058]
[1641744504029,1.17720719,3104.8,3104.4,19.375]
[1641744504229,0.0022737,3104.7,3104.4,19.675]
[1641744504430,0.0022737,3104.7,3104.6,18.91]
[1641744504631,1.49204775,3104.8,3104.6,19.675]
[1641744505433,1.49204775,3104.8,3104.6,21.28553]
[1641744505835,1.49204775,3104.8,3104.6,2.37553]
[1641744506878,0.00341054,3104.9,3104.6,2.37553]
[1641744507079,0.00341054,3104.9,3104.6,21.28553]
[1641744507281,25.0,3105.1,3104.6,21.28553]
[1641744507282,0.00284212,3104.8,3104.6,21.28553]
[1641744507579,25.0,3105.1,3104.7,1.61055]
[1641744507781,25.0,3105.1,3104.7,2.88081]
[1641744507979,1.10037154,3104.9,3104.8,1.10526]
[1641744508180,1.10037154,3104.9,3104.8,1.40526]
[1641744508383,0.00341054,3104.9,3104.8,1.40526]
[1641744508780,0.00341054,3104.9,3104.8,3.01577]
[1641744509183,24.95341054,3105.1,3104.9,5.55]
[1641744509484,24.95341054,3105.1,3104.8,3.82103]
[1641744509980,24.95341054,3105.1,3104.8,4.28603]
[1641744510181,24.95341054,3105.1,3104.9,18.91]
[1641744510835,24.90341054,3105.1,3104.9,18.91]
[1641744511039,1.26079422,3105.0,3104.9,19.71523]
[1641744511238,1.26079422,3105.0,3104.9,0.80523]
[1641744511639,1.26079422,3105.0,3104.8,0.465]
[1641744512036,4.46079422,3105.0,3104.8,0.465]
[1641744512738,4.46079422,3105.0,3104.8,20.98556]
[1641744512938,4.46079422,3105.0,3104.9,0.00097861]
[1641744513539,3.2,3105.0,3104.9,0.00097861]
[1641744513737,3.2,3105.0,3104.9,22.36097599]
[1641744513941,3.2,3105.0,3104.9,22.35999738]
[1641744514378,3.2,3105.0,3104.9,0.80527]
[1641744514779,0.0001,3105.0,3104.9,0.80527]
[1641744515180,0.0001,3105.0,3104.9,0.88577]
[1641744515378,0.0001,3105.0,3104.9,0.80527]
[1641744515878,1.30186089,3105.0,3104.9,0.80527]
[1641744516579,1.25186089,3105.0,3104.9,0.80527]
[1641744517581,1.25186089,3105.0,3104.8,2.16473113]
[1641744518234,1.25186089,3105.0,3104.9,0.80527]
[1641744519135,1.25186089,3105.0,3104.9,1.40527]
[1641744519634,1.25186089,3105.0,3104.9,0.80527]
[1641744519834,1.25186089,3105.0,3104.8,2.07556]
[1641744520036,1.25186089,3105.0,3104.8,0.765]
[1641744520238,1.25186089,3105.0,3104.8,0.3]
[1641744520437,1.25186089,3105.0,3104.4,2.07572]
[1641744520635,1.25186089,3105.0,3104.4,2.67572]
[1641744520835,1.25186089,3105.0,3104.5,0.00227369]
[1641744521038,1.23554783,3104.9,3104.5,0.00227369]
[1641744521238,1.18554783,3104.9,3104.5,0.00227369]
[1641744521880,1.18554783,3104.9,3104.6,0.80541]
[1641744522082,1.18554783,3104.9,3104.6,1.40541]
[1641744522280,1.18554783,3104.9,3104.7,0.00113684]
[1641744524689,1.25186089,3105.0,3104.8,0.80537]
[1641744524884,1.25186089,3105.0,3104.8,3.22108]
[1641744525084,1.25186089,3105.0,3104.9,0.3]
[1641744525732,24.90341054,3105.1,3104.9,0.3]
[1641744525931,24.90341054,3105.1,3105.0,0.80525]
[1641744526132,24.90341054,3105.1,3105.0,1.10525]
[1641744526329,24.90454739,3105.1,3105.0,1.10525]
[1641744527229,24.90454739,3105.1,3105.0,0.80525]
[1641744527431,24.90454739,3105.1,3104.7,0.08164684]
[1641744528431,24.90454739,3105.1,3104.9,0.00104581]
[1641744528929,1.38509086,3105.0,3104.9,0.00104581]
[1641744529379,3.1231018,3105.0,3104.9,0.30104581]
[1641744529581,3.1231018,3105.0,3104.9,0.3]
[1641744529781,3.1231018,3105.0,3104.9,0.80535]
[1641744529981,3.1231018,3105.0,3104.9,1.10535]
[1641744530984,1.38509086,3105.0,3104.9,1.10535]
[1641744531585,3.18098252,3105.0,3104.9,1.10535]
[1641744531984,1.79589166,3105.0,3104.9,1.10535]
[1641744532184,1.79589166,3105.0,3104.9,1.40535]
[1641744532585,24.90454739,3105.1,3104.9,1.40535]
[1641744532786,24.90454739,3105.1,3105.0,1.69097]
[1641744532985,24.90454739,3105.1,3105.0,1.99097]
[1641744533239,24.90454739,3105.1,3105.0,3.38966715]
[1641744533538,24.90454739,3105.1,3105.0,3.30916715]
[1641744534138,24.85454739,3105.1,3105.0,1.91047]
[1641744534545,24.85454739,3105.1,3105.0,1.99097]
[1641744535143,24.85454739,3105.1,3105.0,1.69097]
[1641744535340,24.85454739,3105.1,3105.0,2.21047]
[1641744535539,24.85454739,3105.1,3105.0,1.61047]
[1641744535741,26.68456176,3105.1,3105.0,1.61047]
[1641744535940,26.68456176,3105.1,3105.0,2.21047]
[1641744536340,26.68456176,3105.1,3104.9,0.80535]
[1641744536541,26.68456176,3105.1,3104.9,1.40535]
[1641744536741,26.68456176,3105.1,3104.7,0.00113684]
[1641744537000,2.80048814,3105.0,3104.7,0.00113684]
[1641744537194,26.68456176,3105.1,3104.7,0.00113684]
[1641744537496,1.83001437,3105.0,3104.3,0.00341054]
[1641744537696,2.57876443,3104.9,3104.3,0.00341054]
[1641744537894,2.57876443,3104.9,3104.5,1.61088]
[1641744538093,2.57876443,3104.9,3104.5,0.80542]
[1641744538294,0.80371473,3104.5,3104.2,1.69141]
[1641744538495,0.80371473,3104.5,3104.2,0.0805]
[1641744538695,2.41506513,3104.5,3103.7,0.465]
[1641744538897,2.41506513,3104.5,3103.6,0.80565]
[1641744539094,2.41506513,3104.5,3103.8,0.80849211]
[1641744539298,1.33589087,3103.9,3103.8,0.80849211]
[1641744539500,2.98900015,3104.4,3103.9,0.00227369]
[1641744539696,2.98900015,3104.4,3104.0,0.08053]
[1641744539898,2.98900015,3104.4,3104.1,1.611]
[1641744540096,2.98900015,3104.4,3104.2,0.80551]
[1641744540097,1.15898578,3104.4,3104.2,0.80551]
[1641744540496,1.15131568,3104.3,3104.2,0.80551]
[1641744541129,1.15898578,3104.4,3104.2,1.10551]
[1641744541332,1.82340054,3104.3,3104.2,1.10551]
[1641744541529,1.82340054,3104.3,3104.2,2.40551]